{"text_format":"1","workbook":"xlsx","n_sheets":1,"sheets":["детские сады"],"not_rendered":{"charts":0,"images":0,"macros":0,"external_links":0,"defined_names":1,"comments":0,"pivot_tables":0},"unopened":[],"bounds":{"document_bytes":16777216,"sheet_cells":100000,"rows_first":2000,"rows_last":500,"rows_between":2000,"halvings":0,"cell_chars":16384,"cell_head_chars":4096},"cells_cut":0,"cells_raw":0,"read":"whole","date_system":"1900"}

{"sheet":"детские сады","index":0,"n_rows":121,"n_cols":56,"rows_kept":121,"cut":false,"hidden":false,"merged":[[0,0,0,7],[2,0,2,29],[6,0,6,29],[7,0,8,0],[9,0,10,0],[11,0,12,0],[13,0,14,0],[15,0,16,0],[17,0,18,0],[19,0,20,0],[21,0,22,0],[23,0,24,0],[27,0,28,0],[30,0,31,0],[33,0,34,0],[36,0,37,0],[38,0,39,0],[40,0,41,0],[42,0,43,0],[44,0,45,0],[46,0,47,0],[49,0,50,0],[51,0,51,1],[52,0,52,1],[53,0,53,1],[54,0,54,1],[58,0,58,28],[59,0,60,0],[61,0,62,0],[63,0,64,0],[65,0,66,0],[68,0,69,0],[70,0,71,0],[72,0,73,0],[74,0,75,0],[76,0,77,0],[80,0,81,0],[83,0,84,0],[85,0,86,0],[88,0,89,0],[90,0,91,0],[92,0,93,0],[116,5,116,28],[94,0,95,0],[96,0,97,0],[98,0,99,0],[102,0,103,0],[104,0,104,1],[105,0,105,1],[113,5,113,28],[117,5,117,28],[118,5,118,28],[119,5,119,28],[120,5,120,28],[106,0,106,1],[107,0,107,1],[112,0,116,1],[112,5,112,28],[114,5,114,28],[115,5,115,28]]}
[null,null,null,null,null,null,null,null,null,null,null,null,null,null,null,null,null,null,null,null,null,null,"Приложение 1"]
[null,null,null,null,null,null,null,null,null,null,null,null,null,null,null,null,null,null,null,null,null,null,"к акту от 26.03.2014"]
["Результаты контроля за исполнением муниципального задания на оказание муниципальной услуги \n\"Дошкольное образование в образовательных учреждениях, реализующих программу дошкольного образования\" \nмуниципальным бюджетным, автономным дошкольным образовательным учреждениям в 2013 году"]
[]
["    Наименование показателя    ","    №ДОУ\nМЗ","n-2 год*","n-1 год*",2,3,4,6,7,8,9,11,12,14,15,17,18,19,20,21,22,23,24,25,27,28,29,32,38,39]
["Общие требования к деятельности муниципального учреждения по оказанию муниципальных услуг "]
["Соблюдение норм законодательства Российской Федерации, Ханты-Мансийского автономного округа - Югры, муниципальных правовых актов города Сургута в части, касающейся деятельности муниципального учреждения по оказанию муниципальных услуг",null,null,null,null,null,null,null,null,null,null,null,null,null,null,null,null,null,null,null,null,null,null,null,null,null,null,null,null,null,null,null,null,null,null,null,null,null,null,null,null,null,null,null,null,null,null,null,null,null,null,null,null,null,null,{"$f":"SUM(E7:BC7)","v":0}]
["1. Количество предъявленных исковых требований         ","устан.",null,null,1,1,1,1,1,1,1,1,1,1,1,1,1,1,1,1,1,1,1,1,1,1,1,1,1,1,null,null,null,null,null,null,null,null,null,null,null,null,null,null,null,null,null,null,null,null,null,null,null,null,null,{"$f":"SUM(E8:BC8)","v":26}]
[null,"исполн.",null,null,1,1,1,1,1,1,1,1,1,1,1,1,1,1,1,1,1,1,1,1,1,1,1,1,1,1,null,null,null,null,null,null,null,null,null,null,null,null,null,null,null,null,null,null,null,null,null,null,null,null,null,26]
[]
[]
["2. Количество пунктов предписаний со стороны контрольных и надзорных органов исполнительной власти за нарушения организационного характера     ","устан.",null,null,1,1,1,1,1,1,1,1,1,1,1,1,1,1,1,1,1,1,1,1,1,1,1,1,1,1,null,null,null,null,null,null,null,null,null,null,null,null,null,null,null,null,null,null,null,null,null,null,null,null,null,26]
[null,"исполн.",null,null,1,1,1,1,1,1,1,1,1,1,1,1,1,1,1,1,1,1,1,1,1,1,1,1,1,1,null,null,null,null,null,null,null,null,null,null,null,null,null,null,null,null,null,null,null,null,null,null,null,null,null,26]
["3. Количество и объем штрафных санкций со стороны контрольных и надзорных органов исполнительной власти,                          ","устан.",null,null,1,1,1,1,1,1,1,1,1,1,1,1,1,1,1,1,1,1,1,1,1,1,1,1,1,1,null,null,null,null,null,null,null,null,null,null,null,null,null,null,null,null,null,null,null,null,null,null,null,null,null,26]
[null,"исполн.",null,null,1,1,1,1,1,1,1,1,1,1,1,1,1,1,1,1,1,1,1,1,1,1,1,1,1,1,null,null,null,null,null,null,null,null,null,null,null,null,null,null,null,null,null,null,null,null,null,null,null,null,null,26]
["из них за нарушения организационного характера     ","устан.",null,null,1,1,1,1,1,1,1,1,1,1,1,1,1,1,1,1,1,1,1,1,1,1,1,1,1,1,null,null,null,null,null,null,null,null,null,null,null,null,null,null,null,null,null,null,null,null,null,null,null,null,null,26]
[null,"исполн.",null,null,1,1,1,1,1,1,1,1,1,1,1,1,1,1,1,1,1,1,1,1,1,1,1,1,1,1,null,null,null,null,null,null,null,null,null,null,null,null,null,null,null,null,null,null,null,null,null,null,null,null,null,26]
["4. Количество выявленных нарушений в актах проверок деятельности на предмет соответствия его деятельности нормам законодательства ","устан.",null,null,1,1,1,1,1,1,1,1,1,1,1,1,1,1,1,1,1,1,1,1,1,1,1,1,1,1,null,null,null,null,null,null,null,null,null,null,null,null,null,null,null,null,null,null,null,null,null,null,null,null,null,26]
[null,"исполн.",null,null,1,1,0,1,0,0,1,1,1,1,1,1,0,1,1,1,1,1,1,1,1,1,1,1,1,1,null,null,null,null,null,null,null,null,null,null,null,null,null,null,null,null,null,null,null,null,null,null,null,null,null,22]
["5. Количество выявленных фактов принятия денежных обязательств, не обеспеченных источниками финансирования               ","устан.",null,null,1,1,1,1,1,1,1,1,1,1,1,1,1,1,1,1,1,1,1,1,1,1,1,1,1,1,null,null,null,null,null,null,null,null,null,null,null,null,null,null,null,null,null,null,null,null,null,null,null,null,null,26]
[null,"исполн.",null,null,1,1,1,1,1,1,1,1,1,1,1,1,1,1,1,1,1,1,1,1,1,1,1,1,1,1,null,null,null,null,null,null,null,null,null,null,null,null,null,null,null,null,null,null,null,null,null,null,null,null,null,26]
["6. Количество требований со стороны третьих лиц по выполнению принятых денежных обязательств, не обеспеченных источниками финансирования (либо число требований со стороны третьих лиц, размер предъявленных требований в части, не обеспеченной источниками финансирования)","устан.",null,null,1,1,1,1,1,1,1,1,1,1,1,1,1,1,1,1,1,1,1,1,1,1,1,1,1,1,null,null,null,null,null,null,null,null,null,null,null,null,null,null,null,null,null,null,null,null,null,null,null,null,null,26]
[null,"исполн.",null,null,1,1,1,1,1,1,1,1,1,1,1,1,1,1,1,1,1,1,1,1,1,1,1,1,1,1,null,null,null,null,null,null,null,null,null,null,null,null,null,null,null,null,null,null,null,null,null,null,null,null,null,26]
["7. Количество выявленных фактов финансирования расходов по денежным обязательствам, не обеспеченным источниками финансирования (либо число выявленных фактов, объем расходов по денежным обязательствам, не обеспеченным источниками финансирования)","устан.",null,null,1,1,1,1,1,1,1,1,1,1,1,1,1,1,1,1,1,1,1,1,1,1,1,1,1,1,null,null,null,null,null,null,null,null,null,null,null,null,null,null,null,null,null,null,null,null,null,null,null,null,null,26]
[null,"исполн.",null,null,1,1,1,1,1,1,1,1,1,1,1,1,1,1,1,1,1,1,1,1,1,1,1,1,1,1,null,null,null,null,null,null,null,null,null,null,null,null,null,null,null,null,null,null,null,null,null,null,null,null,null,26]
["Муниципальная услуга «Дошкольное образование в образовательных учреждениях, реализующих программу дошкольного образования»",null,null,null,null,null,null,null,null,null,null,null,null,null,null,null,null,null,null,null,null,null,null,null,null,null,null,null,null,null,null,null,null,null,null,null,null,null,null,null,null,null,null,null,null,null,null,null,null,null,null,null,null,null,null,0]
["Показатели, характеризующие качество оказания муниципальной услуги:",null,null,null,null,null,null,null,null,null,null,null,null,null,null,null,null,null,null,null,null,null,null,null,null,null,null,null,null,null,null,null,null,null,null,null,null,null,null,null,null,null,null,null,null,null,null,null,null,null,null,null,null,null,null,0]
["Количество подтвержденных жалоб потребителей на нарушение стандарта качества оказания муниципальной услуги","устан.",null,null,1,1,1,1,1,1,1,1,1,1,1,1,1,1,1,1,1,1,1,1,1,1,1,1,1,1,null,null,null,null,null,null,null,null,null,null,null,null,null,null,null,null,null,null,null,null,null,null,null,null,null,26]
[null,"исполн.",null,null,1,1,1,1,1,1,1,1,1,1,1,1,1,1,1,1,1,1,1,1,1,1,1,1,1,1,null,null,null,null,null,null,null,null,null,null,null,null,null,null,null,null,null,null,null,null,null,null,null,null,null,26]
["Соблюдение требований к укомплектованности образовательного учреждения кадрами",null,null,null,null,null,null,null,null,null,null,null,null,null,null,null,null,null,null,null,null,null,null,null,null,null,null,null,null,null,null,null,null,null,null,null,null,null,null,null,null,null,null,null,null,null,null,null,null,null,null,null,null,null,null,0]
["Общая укомплектованность работниками (с учетом внутреннего и внешнего совместительства)","устан.",null,null,1,1,1,1,1,1,1,1,1,1,1,1,1,1,1,1,1,1,1,1,1,1,1,1,1,1,null,null,null,null,null,null,null,null,null,null,null,null,null,null,null,null,null,null,null,null,null,null,null,null,null,26]
[null,"исполн.",null,null,1,1,1,"1 1  ",1,1,1,1,1,1,1,1,1,1,1,1,"1 8  ","1 2 ",1,"1 1  ","1 1  ",1,"1 1  ","1 1  ",1,1,null,null,null,null,null,null,null,null,null,null,null,null,null,null,null,null,null,null,null,null,null,null,null,null,null,19]
["    Наименование показателя    ","    №ДОУ\nМЗ","n-2 год*","n-1 год*",2,3,4,6,7,8,9,11,12,14,15,17,18,19,20,21,22,23,24,25,27,28,29,32,38,39]
["Укомплектованность штатными педагогическими работниками (без учета внешнего совместительства), не менее","устан.",null,null,1,1,1,1,1,1,1,1,1,1,1,1,1,1,1,1,1,1,1,1,1,1,1,1,1,1,null,null,null,null,null,null,null,null,null,null,null,null,null,null,null,null,null,null,null,null,null,null,null,null,null,26]
[null,"исполн.",null,null,1,1,1,1,1,1,1,"1 1  ",1,1,1,1,1,1,1,1,1,"1 2 ",1,"1 1  ",1,1,"1 1  ",1,1,1,null,null,null,null,null,null,null,null,null,null,null,null,null,null,null,null,null,null,null,null,null,null,null,null,null,22]
["Соблюдение требований к уровню квалификации работников:",null,null,null,null,null,null,null,null,null,null,null,null,null,null,null,null,null,null,null,null,null,null,null,null,null,null,null,null,null,null,null,null,null,null,null,null,null,null,null,null,null,null,null,null,null,null,null,null,null,null,null,null,null,null,0]
["Доля педагогических работников,  имеющих первую и высшую квалификационные категории, в общей численности педагогических работников (с учетом внутреннего и внешнего совместительства), не менее","устан.",null,null,1,1,1,1,1,1,1,1,1,1,1,1,1,1,1,1,1,1,1,1,1,1,1,1,1,1,null,null,null,null,null,null,null,null,null,null,null,null,null,null,null,null,null,null,null,null,null,null,null,null,null,26]
[null,"исполн.",null,null,"1 3 ",1,1,1,1,1,1,1,1,1,1,1,1,1,"1 3 ",1,1,1,1,1,1,1,1,1,1,1,null,null,null,null,null,null,null,null,null,null,null,null,null,null,null,null,null,null,null,null,null,null,null,null,null,24]
["Доля работников, соответствующих квалификационным требованиям по занимаемым должностям","устан.",null,null,1,1,1,1,1,1,1,1,1,1,1,1,1,1,1,1,1,1,1,1,1,1,1,1,1,1,null,null,null,null,null,null,null,null,null,null,null,null,null,null,null,null,null,null,null,null,null,null,null,null,null,26]
[null,"исполн.",null,null,1,1,1,1,1,1,1,1,1,1,1,1,1,"1 4 ",1,1,1,1,1,1,1,1,1,1,1,1,null,null,null,null,null,null,null,null,null,null,null,null,null,null,null,null,null,null,null,null,null,null,null,null,null,25]
["Соответствие структуры основной общеобразовательной программы дошкольного образовательного учреждения Федеральным государственным требованиям","устан.",null,null,1,1,1,1,1,1,1,1,1,1,1,1,1,1,1,1,1,1,1,1,1,1,1,1,1,1,null,null,null,null,null,null,null,null,null,null,null,null,null,null,null,null,null,null,null,null,null,null,null,null,null,{"$f":"SUM(E41:BC41)","v":26}]
[null,"исполн.",null,null,1,1,1,1,1,1,1,1,1,1,1,1,1,1,1,1,1,1,1,1,1,1,1,1,1,1,null,null,null,null,null,null,null,null,null,null,null,null,null,null,null,null,null,null,null,null,null,null,null,null,null,26]
["Полнота выполнения основной общеобразовательной программы (по данным учреждения)","устан.",null,null,1,1,1,1,1,1,1,1,1,1,1,1,1,1,1,1,1,1,1,1,1,1,1,1,1,1]
[null,"исполн.",null,null,1,1,1,1,1,1,1,1,1,1,1,1,1,1,1,1,1,1,1,1,1,1,1,1,1,1,null,null,null,null,null,null,null,null,null,null,null,null,null,null,null,null,null,null,null,null,null,null,null,null,null,{"$f":"SUM(E44:BC44)","v":26}]
["Выполнение плана по дето-дням","устан.",null,null,1,1,1,1,1,1,1,1,1,1,1,1,1,1,1,1,1,1,1,1,1,1,1,1,1,1,null,null,null,null,null,null,null,null,null,null,null,null,null,null,null,null,null,null,null,null,null,null,null,null,null,26]
[null,"исполн.",null,null,0,0,1,0,1,1,1,1,1,0,1,0,1,0,0,0,1,1,0,1,1,1,0,1,0,0,null,null,null,null,null,null,null,null,null,null,null,null,null,null,null,null,null,null,null,null,null,null,null,null,null,14]
["Доля выпускников с оптимальным и достаточным уровнем готовности к школе, в общей численности выпускников","устан.",null,null,1,1,1,1,1,1,1,1,1,1,1,1,1,1,1,1,1,1,1,1,1,1,1,1,1,1,null,null,null,null,null,null,null,null,null,null,null,null,null,null,null,null,null,null,null,null,null,null,null,null,null,26]
[null,"исполн.",null,null,1,1,1,1,1,1,1,1,1,1,1,1,1,1,1,"1 6 ",1,1,1,1,1,1,"1 6 ",1,1,1,null,null,null,null,null,null,null,null,null,null,null,null,null,null,null,null,null,null,null,null,null,null,null,null,null,24]
["Показатели, характеризующие объем муниципальной услуги"]
["Численность воспитанников, получающих муниципальную услугу в образовательных учреждениях, реализующих программу дошкольного образования","устан.",null,null,1,1,1,1,1,1,1,1,1,1,1,1,1,1,1,1,1,1,1,1,1,1,1,1,1,1,null,null,null,null,null,null,null,null,null,null,null,null,null,null,null,null,null,null,null,null,null,null,null,null,null,26]
[null,"исполн.",null,null,1,1,1,1,1,1,1,1,1,"1 7 ",1,1,1,1,1,1,"1 8 ",1,1,1,1,1,1,"1 7 ",1,1,null,null,null,null,null,null,null,null,null,null,null,null,null,null,null,null,null,null,null,null,null,null,null,null,null,23]
["общее число показателей, по которым установлено мун. задание",null,null,null,{"$f":"E8+E10+E12+E14+E16+E18+E20+E22+E24+E28+E31+E34+E37+E39+E41+E43+E45+E47+E50","v":18},18,18,18,18,18,18,18,18,18,18,18,18,18,18,18,18,18,18,18,18,18,18,18,18,18,null,null,null,null,null,null,null,null,null,null,null,null,null,null,null,null,null,null,null,null,null,null,null,null,null,468]
["число показателей, по которым исполнено муниципальное задание (в том числе признано исполненым с учетом объективных факторов)",null,null,null,{"$f":"E9+E11+E13+E15+E17+E19+E21+E23+E25+E29+E32+E35+1+E40+E42+E44+E46+E48+E51","v":17},{"$f":"F9+F11+F13+F15+F17+F19+F21+F23+F25+F29+F32+F35+F38+F40+F42+F44+F46+F48+F51","v":17},{"$f":"G9+G11+1+G15+G17+G19+G21+G23+G25+G29+G32+G35+G38+G40+G42+G44+G46+G48+G51","v":17},{"$f":"H9+H11+H13+H15+H17+H19+H21+H23+H25+H29+1+H35+H38+H40+H42+H44+H46+H48+H51","v":17},{"$f":"I9+I11+1+I15+I17+I19+I21+I23+I25+I29+I32+I35+I38+I40+I42+I44+I46+I48+I51","v":17},{"$f":"J9+J11+J13+J15+J17+J19+J21+J23+J25+J29+J32+J35+J38+J40+J42+J44+J46+J48+J51","v":17},{"$f":"K9+K11+K13+K15+K17+K19+K21+K23+K25+K29+K32+K35+K38+K40+K42+K44+K46+K48+K51","v":18},{"$f":"L9+L11+L13+L15+L17+L19+L21+L23+L25+L29+L32+1+L38+L40+L42+L44+L46+L48+L51","v":18},{"$f":"M9+M11+M13+M15+M17+M19+M21+M23+M25+M29+M32+M35+M38+M40+M42+M44+M46+M48+M51","v":18},{"$f":"N9+N11+N13+N15+N17+N19+N21+N23+N25+N29+N32+N35+N38+N40+N42+N44+N46+N48+1","v":17},{"$f":"O9+O11+O13+O15+O17+O19+O21+O23+O25+O29+O32+O35+O38+O40+O42+O44+O46+O48+O51","v":18},{"$f":"P9+P11+P13+P15+P17+P19+P21+P23+P25+P29+P32+P35+P38+P40+P42+P44+P46+P48+P51","v":17},{"$f":"Q9+Q11+Q13+Q15+Q17+Q19+Q21+Q23+Q25+Q29+Q32+Q35+Q38+Q40+Q42+Q44+Q46+Q48+Q51","v":17},{"$f":"R9+R11+R13+R15+R17+R19+R21+R23+R25+R29+R32+R35+R38+1+R42+R44+R46+R48+R51","v":17},{"$f":"S9+S11+S13+S15+S17+S19+S21+S23+S25+S29+S32+S35+1+S40+S42+S44+S46+S48+S51","v":17},{"$f":"T9+T11+T13+T15+T17+T19+T21+T23+T25+T29+T32+T35+T38+T40+T42+T44+T46+1+T51","v":17},{"$f":"U9+U11+U13+U15+U17+U19+U21+U23+U25+U29+1+U35+U38+U40+U42+U44+U46+U48+1","v":18},{"$f":"V9+V11+V13+V15+V17+V19+V21+V23+V25+V29+1+1+V38+V40+V42+V44+V46+V48+V51","v":18},{"$f":"W9+W11+W13+W15+W17+W19+W21+W23+W25+W29+W32+W35+W38+W40+W42+W44+W46+W48+W51","v":17},{"$f":"X9+X11+X13+X15+X17+X19+X21+X23+X25+X29+1+1+X38+X40+X42+X44+X46+X48+X51","v":18},{"$f":"Y9+Y11+Y13+Y15+Y17+Y19+Y21+Y23+Y25+Y29+1+Y35+Y38+Y40+Y42+Y44+Y46+Y48+Y51","v":18},{"$f":"Z9+Z11+Z13+Z15+Z17+Z19+Z21+Z23+Z25+Z29+Z32+Z35+Z38+Z40+Z42+Z44+Z46+Z48+Z51","v":18},{"$f":"AA9+AA11+AA13+AA15+AA17+AA19+AA21+AA23+AA25+AA29+1+1+AA38+AA40+AA42+AA44+AA46+1+AA51","v":17},{"$f":"AB9+AB11+AB13+AB15+AB17+AB19+AB21+AB23+AB25+AB29+1+AB35+AB38+AB40+AB42+AB44+AB46+AB48+1","v":18},{"$f":"AC9+AC11+AC13+AC15+AC17+AC19+AC21+AC23+AC25+AC29+AC32+AC35+AC38+AC40+AC42+AC44+AC46+AC48+AC51","v":17},{"$f":"AD9+AD11+AD13+AD15+AD17+AD19+AD21+AD23+AD25+AD29+AD32+AD35+AD38+AD40+AD42+AD44+AD46+AD48+AD51","v":17},null,null,null,null,null,null,null,null,null,null,null,null,null,null,null,null,null,null,null,null,null,null,null,null,null,{"$f":"BD41-BD40","v":1}]
["доля показателей, по которым исполнено муниципальное задание, в общем числе установленных показателей",null,null,null,{"$f":"E53/E52*100","v":94},{"$f":"F53/F52*100","v":94},94,94,94,{"$f":"J53/J52*100","v":94},100,100,100,94,100,{"$f":"P53/P52*100","v":94},94,94,94,{"$f":"T53/T52*100","v":94},100,100,94,100,100,100,{"$f":"AA53/AA52*100","v":94},100,94,94,null,null,null,null,null,null,null,null,null,null,null,null,null,null,null,null,null,null,null,null,null,null,null,null,null,{"$f":"BD41/BD40*100","v":104}]
["ПРОЦЕНТ ИСПОЛНЕНИЯ МУНИЦИПАЛЬНОГО ЗАДАНИЯ:\n\"исполнено\" - 100% \"не исполнено\" - 0%",null,null,null,100,100,100,100,100,100,100,100,100,100,100,100,100,100,100,100,100,100,100,100,100,100,100,100,100,100,null,null,null,null,null,null,null,null,null,null,null,null,null,null,null,null,null,null,null,null,null,null,null,null,null,{"$f":"SUM(E55:BC55)","v":2600}]
[]
["    Наименование показателя    ","    №ДОУ\nМЗ","n-2 год*","n-1 год*",40,41,47,50,55,56,57,61,63,64,65,70,71,74,75,76,77,78,79,81,83,84,89,90,92]
["Общие требования к деятельности муниципального учреждения по оказанию муниципальных услуг (выполнению работ)"]
["Соблюдение норм законодательства Российской Федерации, Ханты-Мансийского автономного округа - Югры, муниципальных правовых актов города Сургута в части, касающейся деятельности муниципального учреждения по оказанию муниципальных услуг (выполнению работ)",null,null,null,null,null,null,null,null,null,null,null,null,null,null,null,null,null,null,null,null,null,null,null,null,null,null,null,null,null,null,null,null,null,null,null,null,null,null,null,null,null,null,null,null,null,null,null,null,null,null,null,null,null,null,{"$f":"SUM(E59:BC59)","v":0}]
["1. Количество предъявленных исковых требований         ","устан.",null,null,1,1,1,1,1,1,1,1,1,1,1,1,1,1,1,1,1,1,1,1,1,1,1,1,1,null,null,null,null,null,null,null,null,null,null,null,null,null,null,null,null,null,null,null,null,null,null,null,null,null,null,{"$f":"SUM(E60:BC60)","v":25}]
[null,"исполн.",null,null,1,1,1,1,1,1,1,1,1,1,1,1,1,1,1,1,1,1,1,1,1,1,1,1,1,null,null,null,null,null,null,null,null,null,null,null,null,null,null,null,null,null,null,null,null,null,null,null,null,null,null,{"$f":"SUM(E61:BC61)","v":25}]
[]
[]
["2. Количество пунктов предписаний со стороны контрольных и надзорных органов исполнительной власти за нарушения организационного характера     ","устан.",null,null,1,1,1,1,1,1,1,1,1,1,1,1,1,1,1,1,1,1,1,1,1,1,1,1,1,null,null,null,null,null,null,null,null,null,null,null,null,null,null,null,null,null,null,null,null,null,null,null,null,null,null,{"$f":"SUM(E64:BC64)","v":25}]
[null,"исполн.",null,null,1,1,1,1,1,1,1,1,1,1,1,1,1,1,1,1,1,1,1,1,1,1,1,1,1,null,null,null,null,null,null,null,null,null,null,null,null,null,null,null,null,null,null,null,null,null,null,null,null,null,null,25]
["3. Количество и объем штрафных санкций со стороны контрольных и надзорных органов исполнительной власти,                          ","устан.",null,null,1,1,1,1,1,1,1,1,1,1,1,1,1,1,1,1,1,1,1,1,1,1,1,1,1,null,null,null,null,null,null,null,null,null,null,null,null,null,null,null,null,null,null,null,null,null,null,null,null,null,null,25]
[null,"исполн.",null,null,1,1,1,1,1,1,1,1,1,1,1,1,1,1,1,1,1,1,1,1,1,1,1,1,1,null,null,null,null,null,null,null,null,null,null,null,null,null,null,null,null,null,null,null,null,null,null,null,null,null,null,25]
["    Наименование показателя    ","    №ДОУ\nМЗ","n-2 год*","n-1 год*",40,41,47,50,55,56,57,61,63,64,65,70,71,74,75,76,77,78,79,81,83,84,89,90,92]
["из них за нарушения организационного характера     ","устан.",null,null,1,1,1,1,1,1,1,1,1,1,1,1,1,1,1,1,1,1,1,1,1,1,1,1,1,null,null,null,null,null,null,null,null,null,null,null,null,null,null,null,null,null,null,null,null,null,null,null,null,null,null,25]
[null,"исполн.",null,null,1,1,1,1,1,1,1,1,1,1,1,1,1,1,1,1,1,1,1,1,1,1,1,1,1,null,null,null,null,null,null,null,null,null,null,null,null,null,null,null,null,null,null,null,null,null,null,null,null,null,null,25]
["4. Количество выявленных нарушений в актах проверок деятельности на предмет соответствия его деятельности нормам законодательства ","устан.",null,null,1,1,1,1,1,1,1,1,1,1,1,1,1,1,1,1,1,1,1,1,1,1,1,1,1,null,null,null,null,null,null,null,null,null,null,null,null,null,null,null,null,null,null,null,null,null,null,null,null,null,null,25]
[null,"исполн.",null,null,1,1,1,1,1,1,1,0,1,1,1,0,1,1,1,1,1,1,1,1,1,1,1,1,1,null,null,null,null,null,null,null,null,null,null,null,null,null,null,null,null,null,null,null,null,null,null,null,null,null,null,23]
["5. Количество выявленных фактов принятия денежных обязательств, не обеспеченных источниками финансирования               ","устан.",null,null,1,1,1,1,1,1,1,1,1,1,1,1,1,1,1,1,1,1,1,1,1,1,1,1,1,null,null,null,null,null,null,null,null,null,null,null,null,null,null,null,null,null,null,null,null,null,null,null,null,null,null,25]
[null,"исполн.",null,null,1,1,1,1,1,1,1,1,1,1,1,1,1,1,1,1,1,1,1,1,1,1,1,1,1,null,null,null,null,null,null,null,null,null,null,null,null,null,null,null,null,null,null,null,null,null,null,null,null,null,null,25]
["6. Количество требований со стороны третьих лиц по выполнению принятых денежных обязательств, не обеспеченных источниками финансирования (либо число требований со стороны третьих лиц, размер предъявленных требований в части, не обеспеченной источниками финансирования)","устан.",null,null,1,1,1,1,1,1,1,1,1,1,1,1,1,1,1,1,1,1,1,1,1,1,1,1,1,null,null,null,null,null,null,null,null,null,null,null,null,null,null,null,null,null,null,null,null,null,null,null,null,null,null,25]
[null,"исполн.",null,null,1,1,1,1,1,1,1,1,1,1,1,1,1,1,1,1,1,1,1,1,1,1,1,1,1,null,null,null,null,null,null,null,null,null,null,null,null,null,null,null,null,null,null,null,null,null,null,null,null,null,null,25]
["7. Количество выявленных фактов финансирования расходов по денежным обязательствам, не обеспеченным источниками финансирования (либо число выявленных фактов, объем расходов по денежным обязательствам, не обеспеченным источниками финансирования)","устан.",null,null,1,1,1,1,1,1,1,1,1,1,1,1,1,1,1,1,1,1,1,1,1,1,1,1,1,null,null,null,null,null,null,null,null,null,null,null,null,null,null,null,null,null,null,null,null,null,null,null,null,null,null,25]
[null,"исполн.",null,null,1,1,1,1,1,1,1,1,1,1,1,1,1,1,1,1,1,1,1,1,1,1,1,1,1,null,null,null,null,null,null,null,null,null,null,null,null,null,null,null,null,null,null,null,null,null,null,null,null,null,null,25]
["Муниципальная услуга «Дошкольное образование в образовательных учреждениях, реализующих программу дошкольного образования»",null,null,null,null,null,null,null,null,null,null,null,null,null,null,null,null,null,null,null,null,null,null,null,null,null,null,null,null,null,null,null,null,null,null,null,null,null,null,null,null,null,null,null,null,null,null,null,null,null,null,null,null,null,null,0]
["Показатели, характеризующие качество оказания муниципальной услуги:",null,null,null,null,null,null,null,null,null,null,null,null,null,null,null,null,null,null,null,null,null,null,null,null,null,null,null,null,null,null,null,null,null,null,null,null,null,null,null,null,null,null,null,null,null,null,null,null,null,null,null,null,null,null,0]
["Количество подтвержденных жалоб потребителей на нарушение стандарта качества оказания муниципальной услуги","устан.",null,null,1,1,1,1,1,1,1,1,1,1,1,1,1,1,1,1,1,1,1,1,1,1,1,1,1,null,null,null,null,null,null,null,null,null,null,null,null,null,null,null,null,null,null,null,null,null,null,null,null,null,null,25]
[null,"исполн.",null,null,1,1,1,1,1,1,1,1,1,1,1,1,1,1,1,1,1,1,1,1,1,1,1,1,1,null,null,null,null,null,null,null,null,null,null,null,null,null,null,null,null,null,null,null,null,null,null,null,null,null,null,25]
["Соблюдение требований к укомплектованности образовательного учреждения кадрами",null,null,null,null,null,null,null,null,null,null,null,null,null,null,null,null,null,null,null,null,null,null,null,null,null,null,null,null,null,null,null,null,null,null,null,null,null,null,null,null,null,null,null,null,null,null,null,null,null,null,null,null,null,null,0]
["Общая укомплектованность работниками (с учетом внутреннего и внешнего совместительства)","устан.",null,null,1,1,1,1,1,1,1,1,1,1,1,1,1,1,1,1,1,1,1,1,1,1,1,1,1,null,null,null,null,null,null,null,null,null,null,null,null,null,null,null,null,null,null,null,null,null,null,null,null,null,null,25]
[null,"исполн.",null,null,1,1,1,1,1,1,1,1,1,1,1,1,"1 1  ",1,"1 1  ",1,1,1,1,1,1,1,1,1,1,null,null,null,null,null,null,null,null,null,null,null,null,null,null,null,null,null,null,null,null,null,null,null,null,null,null,23]
["Укомплектованность штатными педагогическими работниками (без учета внешнего совместительства), не менее","устан.",null,null,1,1,1,1,1,1,1,1,1,1,1,1,1,1,1,1,1,1,1,1,1,1,1,1,1,null,null,null,null,null,null,null,null,null,null,null,null,null,null,null,null,null,null,null,null,null,null,null,null,null,null,25]
[null,"исполн.",null,null,1,1,1,1,1,1,1,1,1,1,1,1,1,1,1,1,1,1,1,1,1,1,1,1,1,null,null,null,null,null,null,null,null,null,null,null,null,null,null,null,null,null,null,null,null,null,null,null,null,null,null,25]
["Соблюдение требований к уровню квалификации работников:",null,null,null,null,null,null,null,null,null,null,null,null,null,null,null,null,null,null,null,null,null,null,null,null,null,null,null,null,null,null,null,null,null,null,null,null,null,null,null,null,null,null,null,null,null,null,null,null,null,null,null,null,null,null,0]
["Доля педагогических работников,  имеющих первую и высшую квалификационные категории, в общей численности педагогических работников (с учетом внутреннего и внешнего совместительства), не менее","устан.",null,null,1,1,1,1,1,1,1,1,1,1,1,1,1,1,1,1,1,1,1,1,1,1,1,1,1,null,null,null,null,null,null,null,null,null,null,null,null,null,null,null,null,null,null,null,null,null,null,null,null,null,null,25]
[null,"исполн.",null,null,1,1,1,1,1,1,1,1,1,1,1,1,1,1,1,1,1,1,1,1,1,1,1,1,1,null,null,null,null,null,null,null,null,null,null,null,null,null,null,null,null,null,null,null,null,null,null,null,null,null,null,25]
["Доля работников, соответствующих квалификационным требованиям по занимаемым должностям","устан.",null,null,1,1,1,1,1,1,1,1,1,1,1,1,1,1,1,1,1,1,1,1,1,1,1,1,1,null,null,null,null,null,null,null,null,null,null,null,null,null,null,null,null,null,null,null,null,null,null,null,null,null,null,25]
[null,"исполн.",null,null,1,1,1,1,1,1,1,1,1,1,1,1,1,1,1,1,1,1,"1 4 ",1,1,1,1,1,1,null,null,null,null,null,null,null,null,null,null,null,null,null,null,null,null,null,null,null,null,null,null,null,null,null,null,24]
["Соответствие структуры основной общеобразовательной программы дошкольного образовательного учреждения Федеральным государственным требованиям","устан.",null,null,1,1,1,1,1,1,1,1,1,1,1,1,1,1,1,1,1,1,1,1,1,1,1,1,1,null,null,null,null,null,null,null,null,null,null,null,null,null,null,null,null,null,null,null,null,null,null,null,null,null,null,{"$f":"SUM(E93:BC93)","v":25}]
[null,"исполн.",null,null,1,1,1,1,1,1,1,1,1,1,1,1,1,1,1,1,1,1,1,1,1,1,1,1,1,null,null,null,null,null,null,null,null,null,null,null,null,null,null,null,null,null,null,null,null,null,null,null,null,null,null,{"$f":"SUM(E94:BC94)","v":25}]
["Полнота выполнения основной общеобразовательной программы (по данным учреждения)","устан.",null,null,1,1,1,1,1,1,1,1,1,1,1,1,1,1,1,1,1,1,1,1,1,1,1,1,1]
[null,"исполн.",null,null,1,1,1,1,1,1,1,1,1,1,1,1,1,1,1,1,1,1,1,1,1,1,1,1,1,null,null,null,null,null,null,null,null,null,null,null,null,null,null,null,null,null,null,null,null,null,null,null,null,null,null,{"$f":"SUM(E96:BC96)","v":25}]
["Выполнение плана по дето-дням","устан.",null,null,1,1,1,1,1,1,1,1,1,1,1,1,1,1,1,1,1,1,1,1,1,1,1,1,1,null,null,null,null,null,null,null,null,null,null,null,null,null,null,null,null,null,null,null,null,null,null,null,null,null,null,{"$f":"SUM(E97:BC97)","v":25}]
[null,"исполн.",null,null,0,0,0,0,1,1,0,1,1,0,1,"1 5",0,1,0,0,1,0,0,1,0,1,0,0,1,null,null,null,null,null,null,null,null,null,null,null,null,null,null,null,null,null,null,null,null,null,null,null,null,null,null,{"$f":"SUM(E98:BC98)","v":10}]
["Доля выпускников с оптимальным и достаточным уровнем готовности к школе, в общей численности выпускников","устан.",null,null,1,1,1,1,1,1,1,1,1,1,1,1,1,1,1,1,1,1,1,1,1,1,1,1,1,null,null,null,null,null,null,null,null,null,null,null,null,null,null,null,null,null,null,null,null,null,null,null,null,null,null,{"$f":"SUM(E99:BC99)","v":25}]
[null,"исполн.",null,null,1,1,1,1,1,1,1,1,1,1,1,1,1,1,1,1,1,1,1,1,1,1,1,1,1,null,null,null,null,null,null,null,null,null,null,null,null,null,null,null,null,null,null,null,null,null,null,null,null,null,null,{"$f":"SUM(E100:BC100)","v":25}]
["Показатели, характеризующие объем муниципальной услуги"]
["    Наименование показателя    ","    №ДОУ\nМЗ","n-2 год*","n-1 год*",40,41,47,50,55,56,57,61,63,64,65,70,71,74,75,76,77,78,79,81,83,84,89,90,92]
["Численность воспитанников, получающих муниципальную услугу в образовательных учреждениях, реализующих программу дошкольного образования","устан.",null,null,1,1,1,1,1,1,1,1,1,1,1,1,1,1,1,1,1,1,1,1,1,1,1,1,1,null,null,null,null,null,null,null,null,null,null,null,null,null,null,null,null,null,null,null,null,null,null,null,null,null,null,{"$f":"SUM(E103:BC103)","v":25}]
[null,"исполн.",null,null,1,1,1,1,1,1,1,1,0,1,1,1,1,1,1,1,1,1,1,1,"1 7 ",1,1,1,1,null,null,null,null,null,null,null,null,null,null,null,null,null,null,null,null,null,null,null,null,null,null,null,null,null,null,{"$f":"SUM(E104:BC104)","v":23}]
["общее число показателей, по которым установлено муниципальное задание",null,null,null,{"$f":"E60+E62+E64+E66+E69+E71+E73+E75+E77+E81+E84+E86+E89+E91+E93+E95+E97+E99+E103","v":18},18,18,18,18,18,18,18,18,18,18,18,18,18,18,18,18,18,18,18,18,18,18,18,18,null,null,null,null,null,null,null,null,null,null,null,null,null,null,null,null,null,null,null,null,null,null,null,null,null,null,{"$f":"SUM(E105:BC105)","v":450}]
["число показателей, по которым исполнено муниципальное задание (в том числе признано исполненым с учетом объективных факторов)",null,null,null,17,17,17,17,18,18,17,17,{"$f":"M61+M63+M65+M67+M70+M72+M74+M76+M78+M82+M85+M87+M90+M92+M94+M96+1+M100+M104","v":17},17,18,{"$f":"P61+P63+1+P67+P70+P72+P74+P76+P78+P82+P85+P87+P90+P92+P94+P96+1+P100+P104","v":17},{"$f":"Q61+Q63+Q65+Q67+Q70+Q72+Q74+Q76+Q78+Q82+1+Q87+Q90+Q92+Q94+Q96+Q98+Q100+Q104","v":17},18,{"$f":"S61+S63+S65+S67+S70+S72+S74+S76+S78+S82+1+S87+S90+S92+S94+S96+S98+S100+S104","v":17},17,18,17,{"$f":"W61+W63+W65+W67+W70+W72+W74+W76+W78+W82+W85+W87+W90+1+W94+W96+W98+W100+W104","v":17},18,{"$f":"Y61+Y63+Y65+Y67+Y70+Y72+Y74+Y76+Y78+Y82+Y85+Y87+Y90+Y92+Y94+Y96+Y98+Y100+1","v":17},18,17,{"$f":"AB61+AB63+1+AB67+AB70+AB72+AB74+AB76+AB78+AB82+AB85+AB87+AB90+AB92+AB94+AB96+AB98+AB100+AB104","v":17},18,null,null,null,null,null,null,null,null,null,null,null,null,null,null,null,null,null,null,null,null,null,null,null,null,null,null,{"$f":"BD93-BD92","v":1}]
["доля показателей, по которым исполнено муниципальное задание, в общем числе установленных показателей",null,null,null,{"$f":"E106/E105*100","v":94},94,94,94,100,100,94,94,94,94,100,94,94,100,94,94,100,94,94,100,94,100,94,94,100,null,null,null,null,null,null,null,null,null,null,null,null,null,null,null,null,null,null,null,null,null,null,null,null,null,null,{"$f":"BD93/BD92*100","v":104}]
["ПРОЦЕНТ ИСПОЛНЕНИЯ МУНИЦИПАЛЬНОГО ЗАДАНИЯ:\n\"исполнено\" - 100% \"не исполнено\" - 0%",null,null,null,100,100,100,100,100,100,100,100,100,100,100,100,100,100,100,100,100,100,100,100,100,100,100,100,100,null,null,null,null,null,null,null,null,null,null,null,null,null,null,null,null,null,null,null,null,null,null,null,null,null,null,{"$f":"SUM(E108:BC108)","v":2500}]
[]
["Условные обозначения:",null,null,null,1,"\"да\""]
[null,null,null,null,0,"\"нет\""]
[null,null,null,null,null,"плановое значение не устанавливалось"]
["объективные факторы - причины, позволившие считать показатель исполненным при фактическом исполнении менее 95%:"]
[null,null,null,null,"1 1  ","с учетом внутреннего и внешнего совместительства, совмещения, расширения зон обслуживания укомплектованность составила более 95%; наличие вакансий педагогических кадров не повлияло на качество и полноту реализации образовательной программы"]
[null,null,null,null,"1 2 ","фактическая потребность в кадрах в период подготовки к проведению ремонтных работ и (или) проведения ремонтных работ обеспечена в полном объеме"]
[null,null,null,null,"1 3 ","срок прохождения аттестации ряда педагогов не наступил"]
[null,null,null,null,"1 4 ","отдельные работники не имеют необходимой специальной подготовки, но обладают достаточным практическим опытом и компетентностью и назначены на занимаемые должности в соответствии с п. 9 раздела I Единого квалификационного справочника должностей руководителей, специалистов и служащих, утвержденного приказом Минздравсоцразвития РФ от 26.08.2010 № 761н с изменениями от 31.05.2011 № 448н). Работники уведомлены о необходимости обучения."]
[null,null,null,null,"1 5","в период комплектования родителями был превышен срок прохождения детьми медицинского осмотра ввиду отсутствия в городе (отпуск)"]
[null,null,null,null,"1 6 ","выпускников в отчетном году не было"]
[null,null,null,null,"1 7 ","процесс комплектования групп согласован с проведением экспертизы о необходимости проведения ремонтных работ, графиком проведения ремонтных работ, оборудования помещений"]
[null,null,null,null,"1 8 ","комплектование дополнительных групп началось после свесения необходимого изменения  в лицензию МБДОУ"]